bitfinex/quotes_ETHUSD_20260305
["timestamp","ask_amount","ask_price","bid_price","bid_amount"]
[1772689246355,1.67576037,2115.5,2114.7,1.64794649]
[1772689246554,0.49400649,2115.5,2114.7,1.64794649]
[1772689248459,1.67576946,2115.5,2114.7,1.64794649]
[1772689248866,0.45521244,2115.4,2114.7,1.18220078]
[1772689249031,0.45521244,2115.4,2114.6,0.47579571]
[1772689249755,0.45521244,2115.4,2114.5,4.72912284]
[1772689251060,1.18186545,2115.3,2114.5,4.72912284]
[1772689251241,0.45521244,2115.2,2114.5,4.72912284]
[1772689252544,0.45521244,2115.2,2113.7,0.70503162]
[1772689252880,1.18184573,2115.4,2113.7,1.88775327]
[1772689252881,0.45521244,2114.7,2113.7,1.88775327]
[1772689253328,0.45521244,2114.5,2113.7,1.88775327]
[1772689253837,0.45521244,2114.5,2114.2,0.0011]
[1772689255361,0.45521244,2114.3,2114.2,0.0011]
[1772689257554,1.63763688,2114.3,2114.2,0.0011]
[1772689258567,0.45521244,2114.2,2113.5,1.65866281]
[1772689259769,1.63774874,2114.1,2113.5,1.65866281]
[1772689260353,0.45521244,2114.7,2113.6,0.47579571]
[1772689260540,1.63738088,2114.8,2113.6,0.47579571]
[1772689260864,0.45521244,2114.7,2113.8,0.47579571]
[1772689261472,0.45521244,2114.7,2113.9,1.516]
[1772689261678,1.18225669,2114.6,2114.0,1.18259224]
[1772689262169,1.18225669,2114.6,2114.0,0.98591316]
[1772689262563,1.63746913,2114.6,2114.0,0.98591316]
[1772689263972,4.72902676,2114.8,2114.0,0.98591316]
[1772689263973,1.18214488,2114.8,2114.1,0.47579571]
[1772689264176,0.45521244,2114.7,2114.1,0.47579571]
[1772689264376,0.45521244,2114.7,2114.0,0.98591316]
[1772689266164,1.63746913,2114.6,2113.9,4.73041845]
[1772689266366,4.72857953,2115.1,2113.9,4.73041845]
[1772689266367,0.45521244,2114.5,2114.2,0.0011]
[1772689266562,4.72857953,2115.1,2114.2,0.47689571]
[1772689266563,0.45521244,2115.1,2114.2,0.47689571]
[1772689266772,0.45521244,2115.1,2114.2,0.0011]
[1772689267143,0.45521244,2115.1,2114.2,0.47689571]
[1772689268276,0.45521244,2114.9,2114.2,0.0011]
[1772689268799,0.45521244,2114.9,2114.2,0.47689571]
[1772689269362,1.18203309,2115.0,2114.2,0.47689571]
[1772689269559,1.63724553,2115.0,2114.2,0.47689571]
[1772689269774,1.18203309,2115.0,2114.2,0.47689571]
[1772689269948,0.45521244,2114.9,2114.2,0.47689571]
[1772689270149,0.45521244,2114.9,2114.3,1.18242444]
[1772689270150,1.18214488,2114.8,2114.3,1.18242444]
[1772689270364,1.63735732,2114.8,2114.3,1.18242444]
[1772689270765,0.45521244,2114.8,2114.3,1.18242444]
[1772689270960,1.63729145,2115.0,2114.4,0.47579571]
[1772689271759,0.45521244,2115.0,2114.4,0.47579571]
[1772689271958,1.63715881,2115.2,2114.4,0.47579571]
[1772689272176,4.72849629,2115.3,2114.5,1.1823126]
[1772689272177,1.63719321,2115.1,2114.5,1.1823126]
[1772689272356,4.72849629,2115.3,2114.6,0.47579571]
[1772689272357,0.45621244,2115.3,2114.6,0.47579571]
[1772689272550,1.63808561,2115.3,2114.6,0.47579571]
[1772689273967,0.001,2115.3,2114.6,0.47579571]
[1772689274163,0.001,2115.3,2114.8,0.47579571]
[1772689274470,0.001,2115.3,2114.9,1.18208898]
[1772689274974,0.001,2115.3,2115.0,0.47579571]
[1772689276780,0.001,2115.3,2115.0,1.6577756]
[1772689277981,0.001,2115.3,2114.9,1.523]
[1772689278283,0.001,2115.3,2114.9,3.1808437]
[1772689278467,0.001,2115.3,2114.9,1.6578437]
[1772689278663,0.001,2115.3,2114.9,3.1808437]
[1772689279054,0.001,2115.3,2114.9,2.70504799]
[1772689279278,0.001,2115.1,2114.9,1.18204799]
[1772689279461,0.001,2115.1,2114.9,2.70504799]
[1772689279677,0.001,2115.1,2114.7,2.70517082]
[1772689280695,0.001,2115.1,2114.8,1.523]
[1772689280891,0.001,2115.1,2114.7,1.18217082]
[1772689281099,0.001,2115.1,2114.8,1.523]
[1772689282605,0.001,2115.1,2114.8,1.524]
[1772689282770,0.001,2115.1,2114.6,1.67113934]
[1772689282971,1.67127047,2115.0,2114.4,1.67127495]
[1772689283207,0.48923738,2114.9,2114.5,1.524]
[1772689284367,1.67225903,2115.1,2114.5,2.01292755]
[1772689285305,1.18298012,2115.1,2114.7,0.48892755]
[1772689285509,0.48923738,2114.9,2114.2,0.0011]
[1772689286078,0.48923738,2114.7,2114.2,0.0011]
[1772689286919,0.48923738,2114.7,2114.2,1.18357868]
[1772689287380,0.48923738,2114.7,2114.2,0.49918399]
[1772689287706,1.1821747,2114.8,2114.2,0.49918399]
[1772689287907,1.64153834,2114.8,2114.2,0.49918399]
[1772689288102,0.45936364,2115.0,2114.2,0.49918399]
[1772689288304,1.18297923,2115.1,2114.2,0.49918399]
[1772689288710,1.64234287,2115.1,2114.2,0.49918399]
[1772689289289,0.001,2115.1,2114.4,0.49808399]
[1772689291478,0.001,2115.1,2114.6,0.49808399]
[1772689291680,0.001,2115.3,2114.8,0.49808399]
[1772689292313,0.001,2115.3,2114.8,2.01708399]
[1772689293507,0.001,2115.3,2114.9,1.52]
[1772689294008,0.001,2115.3,2114.9,2.01808399]
[1772689294383,0.001,2115.3,2115.0,1.52]
[1772689294582,0.001,2115.3,2114.9,2.01908399]
[1772689295619,0.001,2115.3,2115.0,1.18203309]
[1772689297225,0.001,2115.3,2115.0,1.68011708]
[1772689298853,0.001,2115.3,2115.0,0.49808399]
[1772689300826,0.001,2115.3,2115.1,1.523]
[1772689301228,0.001,2115.3,2114.9,1.18204299]
[1772689301420,0.46036364,2115.3,2115.1,1.523]
[1772689301615,0.46036364,2115.3,2115.0,1.523]
[1772689302430,0.46036364,2115.3,2114.9,2.70504299]
[1772689302807,0.45936364,2115.2,2114.8,1.18320527]
[1772689303004,0.001,2115.1,2114.9,1.523]
[1772689304231,0.001,2115.1,2114.9,2.02108399]
[1772689304419,0.001,2115.3,2115.0,0.49808399]
[1772689305199,0.46036364,2115.3,2114.9,1.18204754]
[1772689305541,0.46036364,2115.3,2115.0,1.524]
[1772689309610,0.46036364,2115.3,2115.0,2.70603106]
[1772689309838,0.001,2115.3,2115.0,2.70603106]
[1772689310021,0.001,2115.3,2115.0,3.17537159]
[1772689310629,0.001,2115.3,2115.1,0.46934053]
[1772689312143,0.49322004,2115.2,2114.8,0.0011]
[1772689312508,0.49322004,2115.2,2114.8,1.5261]
[1772689314243,1.67518683,2115.2,2114.8,1.5261]
[1772689315317,1.67518683,2115.2,2115.0,0.0011]
[1772689315519,0.49422004,2115.1,2115.0,0.0011]
[1772689317455,1.67619725,2115.1,2115.0,0.0011]
[1772689319246,1.67619725,2115.1,2114.8,0.0011]
[1772689319247,0.49322004,2115.0,2114.8,0.0011]
[1772689319418,3.96261075,2115.1,2114.8,0.0011]
[1772689319419,1.67530902,2114.9,2114.8,0.0011]
[1772689320515,0.49322004,2114.9,2114.8,0.0011]
[1772689321625,1.67530902,2114.9,2114.8,0.0011]
[1772689324318,4.43566589,2114.9,2114.8,0.0011]
[1772689326227,1.67530902,2114.9,2114.8,0.0011]
[1772689326849,0.49322004,2114.8,2114.5,0.0011]
[1772689327223,1.67530759,2115.0,2114.5,0.47044053]
[1772689327954,0.001,2114.8,2114.5,0.47044053]
[1772689328326,0.001,2114.8,2114.6,0.46934053]
[1772689330856,0.001,2114.8,2114.7,0.46934053]
[1772689331051,0.001,2115.1,2114.7,0.46934053]
[1772689332155,0.49422004,2115.0,2114.5,1.18341062]
[1772689332332,0.49422004,2115.0,2114.5,0.0011]
[1772689332664,0.001,2115.1,2114.6,0.46934053]
[1772689332868,0.001,2115.1,2114.8,0.46934053]
[1772689334275,0.001,2115.1,2115.0,0.46934053]
[1772689334440,0.001,2115.1,2115.0,1.99334053]
[1772689334640,0.001,2115.3,2115.1,0.46934053]
[1772689334849,0.001,2115.3,2115.1,1.65128475]
[1772689335660,0.001,2115.3,2115.1,0.46934053]
[1772689336190,0.001,2115.2,2114.9,0.46934053]
[1772689336465,0.002,2115.3,2114.9,0.46934053]
[1772689337363,0.002,2115.3,2115.0,1.65137362]
[1772689338159,0.002,2115.3,2115.1,0.46934053]
[1772689339274,0.002,2115.3,2115.1,1.65127965]
[1772689339438,0.002,2115.3,2115.1,0.46934053]
[1772689340055,0.002,2115.3,2115.1,1.65130806]
[1772689340263,0.002,2115.3,2115.1,0.46934053]
[1772689341549,0.001,2115.2,2115.0,2.70612565]
[1772689341749,0.47289208,2115.3,2115.0,2.70612565]
[1772689341989,0.001,2115.2,2115.0,3.17705152]
[1772689342287,0.001,2115.3,2115.0,3.17705152]
[1772689342451,0.001,2115.2,2115.0,3.17705152]
[1772689342650,0.002,2115.3,2115.0,3.17705152]
[1772689344954,0.002,2115.3,2115.0,0.47202587]
[1772689345275,0.002,2115.3,2115.1,1.524]
[1772689347761,0.001,2115.2,2115.1,1.524]
[1772689348160,0.001,2115.2,2115.0,1.98702587]
[1772689348464,1.18290975,2115.3,2115.0,1.98702587]
[1772689348684,0.001,2115.2,2115.0,1.98702587]
[1772689350594,1.18290975,2115.3,2114.8,0.0011]
[1772689350595,0.48552843,2115.1,2114.8,0.0011]
[1772689351416,0.001,2115.0,2114.8,0.0011]
[1772689351572,0.48552843,2115.0,2114.8,0.0011]
[1772689352395,1.66756152,2115.0,2114.9,0.0011]
[1772689352595,0.48552843,2114.9,2114.5,0.0011]
[1772689353216,4.72891339,2115.1,2114.6,0.0011]
[1772689353217,0.48652843,2115.1,2114.6,0.0011]
[1772689353368,0.48652843,2115.1,2114.7,1.519]
[1772689353369,0.48552843,2114.9,2114.7,1.519]
[1772689353701,0.48552843,2114.9,2114.6,1.5201]
[1772689353989,0.48552843,2114.9,2114.6,1.97227844]
[1772689355299,1.66855043,2115.1,2114.6,3.15453337]
[1772689356198,0.001,2115.0,2114.6,3.15453337]
[1772689356496,0.001,2115.0,2114.6,1.97227844]
[1772689356703,0.48652843,2115.0,2114.6,1.97227844]
[1772689356995,0.48652843,2115.0,2114.6,3.15452032]
[1772689357168,0.001,2114.9,2114.6,0.45327844]
[1772689357368,0.001,2114.9,2114.7,1.521]
[1772689358301,0.48552843,2115.0,2114.7,1.521]
[1772689358601,0.48652843,2114.9,2114.6,1.5221]
[1772689360596,0.48652843,2114.9,2114.6,0.0011]
[1772689360778,0.001,2114.8,2114.6,3.15752206]
[1772689361101,1.66854488,2115.1,2114.7,0.45217844]
[1772689361281,0.001,2115.0,2114.7,0.45217844]
[1772689361482,0.48652843,2115.0,2114.6,1.5231]
[1772689361785,0.48552843,2114.8,2114.6,1.5231]
[1772689364691,0.48652843,2115.0,2114.6,1.5231]
[1772689364892,0.001,2114.8,2114.6,1.5231]
[1772689365207,0.48552843,2114.7,2114.6,0.0011]
[1772689365506,0.48552843,2114.7,2114.6,0.0001]
[1772689366006,0.48652843,2114.8,2114.6,0.0001]
[1772689366709,0.001,2114.8,2114.6,0.45227844]
[1772689367085,0.001,2114.8,2114.6,1.6345339]
[1772689367304,0.001,2114.8,2114.6,0.45227844]
[1772689369510,0.001,2114.8,2114.6,1.63452783]
[1772689370310,0.001,2114.8,2114.6,0.45227844]
[1772689370505,0.001,2114.8,2114.6,1.63453311]
[1772689370686,0.001,2114.8,2114.7,0.48890193]
[1772689371302,0.001,2114.8,2114.7,1.67110271]
[1772689371505,0.001,2115.1,2114.8,0.48890193]
[1772689373933,0.001,2115.1,2114.9,1.18208898]
[1772689374292,0.001,2115.3,2115.1,0.48890193]
[1772689375784,1.63585505,2115.3,2114.8,1.18210278]
[1772689375986,0.45298607,2115.2,2114.9,1.525]
[1772689377415,0.45298607,2115.2,2114.9,2.01390193]
[1772689377924,0.001,2115.3,2115.0,1.67092665]
[1772689378220,0.001,2115.3,2115.0,0.48890193]
[1772689378389,0.001,2115.3,2115.0,1.67093018]
[1772689378592,0.45398607,2115.3,2115.0,1.67093018]
[1772689380890,0.001,2115.3,2115.0,1.67093018]
[1772689381213,0.001,2115.3,2115.1,0.48890193]
[1772689382206,0.001,2115.3,2115.1,1.67085826]
[1772689382427,0.001,2115.3,2115.1,0.48890193]
[1772689382792,0.001,2115.3,2115.0,1.18202508]
[1772689383896,0.45398607,2115.3,2115.0,1.18202508]
[1772689384220,0.45398607,2115.3,2115.1,1.526]
[1772689384786,0.45398607,2115.3,2115.1,2.70796862]
[1772689385195,0.001,2115.3,2115.1,3.19687055]
[1772689386826,0.001,2115.3,2115.1,1.67087055]
[1772689387126,0.001,2115.3,2115.2,1.527]
[1772689387423,0.001,2115.3,2115.1,1.67087055]
[1772689387424,0.001,2115.3,2115.1,0.48890193]
[1772689387627,0.001,2115.3,2115.1,2.01590193]
[1772689388008,0.001,2115.3,2115.1,3.19787469]
[1772689388824,0.45298607,2115.8,2115.2,0.48890193]
[1772689389020,5.90516168,2116.3,2115.2,0.48890193]
[1772689389021,0.001,2116.3,2115.2,0.48890193]
[1772689389227,0.45398607,2116.3,2115.2,0.48890193]
[1772689389540,0.001,2116.3,2115.2,0.48890193]
[1772689390034,0.45398607,2116.3,2115.4,0.48890193]
[1772689390234,1.63529638,2116.3,2115.4,0.48890193]
[1772689390439,1.63529884,2116.3,2115.6,0.48890193]
[1772689390734,0.45398607,2116.3,2115.6,0.48890193]
[1772689391041,0.45398607,2116.3,2115.8,0.48890193]
[1772689391901,0.45298607,2116.2,2115.7,1.527]
[1772689392497,0.45298607,2116.2,2115.6,1.67056434]
[1772689392702,0.45298607,2116.2,2115.6,1.527]
[1772689392928,0.45298607,2116.0,2115.2,0.48890193]
[1772689393516,0.45298607,2116.0,2115.2,0.19830745]
[1772689394731,0.45298607,2116.0,2115.0,0.0011]
[1772689394732,0.45298607,2116.0,2115.0,0.19940745]
[1772689394932,0.45298607,2116.0,2115.0,0.0011]
[1772689394933,0.45298607,2115.6,2115.0,0.0011]
[1772689395228,0.45298607,2115.6,2115.0,1.18312571]
[1772689396314,0.45298607,2115.6,2115.1,0.19830745]
[1772689396907,1.18175372,2115.5,2115.1,0.19830745]
[1772689397107,1.18175372,2115.5,2115.1,1.72530745]
[1772689397718,1.18175372,2115.5,2115.1,2.90728376]
[1772689398310,1.18175372,2115.5,2115.1,1.72530745]
[1772689398605,1.18175372,2115.5,2115.1,2.90727614]
[1772689398812,1.63472902,2115.6,2115.1,2.90727614]
[1772689399105,5.53124775,2116.1,2115.2,0.19830745]
[1772689399106,0.49721533,2116.1,2115.2,0.19830745]
[1772689400308,0.49721533,2116.1,2115.3,0.0011]
[1772689400516,0.49721533,2116.0,2115.3,0.0011]
[1772689400720,0.001,2115.4,2115.3,0.0011]
[1772689403419,0.49721533,2115.9,2115.3,0.19940745]
[1772689405447,0.49721533,2115.9,2115.4,1.18180958]
[1772689405448,1.67875047,2115.9,2115.4,1.18180958]
[1772689405812,1.18151739,2116.0,2115.5,0.19830745]
[1772689406445,1.67873272,2116.0,2115.5,0.19830745]
[1772689406821,0.46710004,2115.9,2115.3,0.0011]
[1772689407539,1.6486862,2115.8,2115.3,0.0011]
[1772689407843,0.46710004,2116.1,2115.3,0.19940745]
[1772689408437,1.64944818,2116.3,2115.3,0.19940745]
[1772689409641,1.18141864,2116.1,2115.5,1.38002761]
[1772689409842,1.18232741,2116.3,2115.6,0.19830745]
[1772689410243,1.64942745,2116.3,2115.7,1.519]
[1772689410437,1.64942745,2116.3,2115.8,0.19830745]
[1772689411026,0.46810004,2116.3,2115.8,0.19830745]
[1772689411222,0.001,2116.3,2115.8,0.19830745]
[1772689411421,1.64828041,2116.6,2115.8,0.19730745]
[1772689411640,1.96642862,2116.7,2116.0,0.19730745]
[1772689412319,1.64820014,2116.7,2116.0,0.19730745]
[1772689412520,1.64820014,2116.7,2116.1,0.19730745]
[1772689412723,0.46710004,2116.7,2116.2,0.19730745]
[1772689412918,0.46710004,2116.7,2116.0,1.519]
[1772689413355,0.46710004,2116.4,2115.7,1.519]
[1772689413848,0.46710004,2116.3,2115.8,0.19730745]
[1772689415648,1.6493372,2116.5,2115.8,0.19730745]
[1772689415847,0.001,2116.5,2116.0,0.19730745]
[1772689416249,0.46710004,2116.4,2115.8,1.18154229]
[1772689416429,0.46710004,2116.4,2115.9,1.52]
[1772689417033,0.46710004,2116.4,2115.8,1.18154229]
[1772689417249,0.46710004,2116.4,2115.7,4.92378709]
[1772689417250,0.46710004,2116.4,2115.7,1.37894501]
[1772689417635,0.46710004,2116.4,2115.7,1.18163756]
[1772689417831,0.46710004,2116.4,2115.8,0.19730745]
[1772689418026,1.18130699,2116.3,2115.8,1.37884885]
[1772689418347,1.64840703,2116.3,2115.8,0.19730745]
[1772689418654,1.64840703,2116.3,2115.8,1.37888919]
[1772689420328,1.64840703,2116.3,2115.6,1.37896096]
[1772689420329,0.46710004,2116.2,2115.6,1.37896096]
[1772689420553,0.46710004,2116.2,2115.6,1.37899167]
[1772689420749,0.46710004,2116.2,2115.7,1.52]
[1772689421338,0.46710004,2116.2,2115.6,1.37899167]
[1772689421539,0.46710004,2116.2,2115.6,2.89899167]
[1772689422149,1.18141864,2116.1,2115.6,1.37899167]
[1772689422348,1.64851868,2116.1,2115.6,2.70168909]
[1772689422647,1.64851868,2116.1,2115.6,1.71730745]
[1772689422648,1.18141864,2116.1,2115.6,1.71730745]
[1772689422851,1.64851868,2116.1,2115.6,1.71730745]
[1772689424055,0.46710004,2116.0,2115.4,1.37908135]
[1772689424429,1.18153031,2115.9,2115.4,0.19730745]
[1772689424635,1.64863035,2115.9,2115.8,0.0011]
[1772689425656,1.18153031,2115.9,2115.8,0.0011]
[1772689425834,1.18151029,2116.0,2115.8,0.0011]
[1772689426031,1.64861033,2116.0,2115.8,0.0011]
[1772689427035,0.46710004,2115.9,2115.8,0.0011]
[1772689427633,1.18151029,2116.0,2115.8,0.0011]
[1772689427849,1.64861033,2116.0,2115.8,0.0011]
[1772689428652,1.1814333,2116.1,2115.8,0.0011]
[1772689430562,1.66024097,2116.1,2115.8,0.0011]
[1772689431149,1.66013878,2116.3,2115.8,0.19840745]
[1772689431352,1.66012019,2116.3,2115.8,0.19840745]
[1772689431541,1.66012019,2116.3,2115.8,1.37994167]
[1772689431971,1.66012019,2116.3,2115.9,0.19730745]
[1772689434052,1.66012019,2116.3,2115.9,1.3788373]
[1772689434248,0.47880767,2116.3,2115.9,1.3788373]
[1772689434668,1.66012042,2116.3,2115.9,1.3788373]
[1772689434858,1.18131275,2116.3,2116.0,0.19730745]
[1772689435878,1.66012042,2116.3,2116.0,0.19730745]
[1772689437083,1.66012042,2116.3,2116.0,0.19840745]
[1772689437378,0.001,2116.1,2116.0,0.19840745]
[1772689440481,4.72587872,2116.5,2116.1,0.19730745]
[1772689440482,0.47980767,2116.5,2116.1,0.19730745]
[1772689442178,0.47880767,2116.4,2116.1,1.37867981]
[1772689443464,0.47880767,2116.4,2116.0,0.0011]
[1772689443958,0.47880767,2116.4,2116.0,1.1825686]
[1772689444157,1.18222688,2116.5,2116.0,1.37987605]
[1772689444363,0.47880767,2116.4,2116.0,1.37987605]
[1772689444970,1.66103455,2116.5,2116.1,0.19730745]
[1772689445171,1.18222688,2116.5,2116.1,0.19730745]
[1772689445383,0.47880767,2116.4,2116.1,0.19730745]
[1772689445688,0.47880767,2116.4,2116.0,1.1825686]
[1772689445891,0.47880767,2116.4,2116.0,1.37987605]
[1772689446394,0.001,2116.8,2116.1,0.19730745]
[1772689446568,0.001,2116.8,2116.1,0.19630745]
[1772689446771,0.47880767,2117.2,2116.3,0.19630745]
[1772689447093,0.001,2117.3,2116.5,0.19630745]
[1772689448392,0.001,2117.3,2116.7,0.19630745]
[1772689450107,0.47980767,2117.3,2116.7,0.19630745]
[1772689450259,1.66059544,2117.3,2116.8,1.518]
[1772689450469,0.47880767,2117.2,2116.8,1.518]
[1772689450695,0.47880767,2117.2,2116.7,1.518]
[1772689451186,0.47880767,2117.2,2116.5,1.518]
[1772689451764,0.47880767,2117.2,2116.5,1.71430745]
[1772689452506,0.47980767,2117.3,2116.7,0.19630745]
[1772689452798,1.66058239,2117.3,2116.7,0.19630745]
[1772689453477,0.47880767,2117.2,2116.7,0.19630745]
[1772689453792,0.47880767,2117.2,2116.5,1.18116891]
[1772689454096,0.47880767,2117.2,2116.6,1.517]
[1772689454769,0.47880767,2117.0,2116.6,2.69813113]
[1772689455169,0.47880767,2117.0,2116.6,1.517]
[1772689457173,1.65966828,2117.1,2116.6,2.89444233]
[1772689457701,0.47880767,2117.0,2116.6,2.89444233]
[1772689458382,0.47880767,2117.2,2116.6,2.69813488]
[1772689458578,1.18178945,2117.3,2116.7,0.19630745]
[1772689459093,1.67232207,2117.3,2116.7,0.19630745]
[1772689459295,1.67228231,2117.3,2116.8,1.37733541]
[1772689459483,0.49153262,2117.3,2116.8,1.37733541]
[1772689459667,1.67228563,2117.3,2116.8,2.89433541]
[1772689460397,0.001,2117.3,2116.9,0.19630745]
[1772689460701,0.001,2117.3,2116.9,1.71330745]
[1772689461574,0.001,2117.3,2116.9,2.89423893]
[1772689461901,0.001,2117.1,2116.9,2.89423893]
[1772689465108,0.001,2117.3,2116.9,2.89423893]
[1772689465879,0.001,2117.3,2117.0,0.19630745]
[1772689468030,0.001,2117.3,2117.0,1.37719442]
[1772689468237,0.001,2117.3,2117.0,0.19630745]
[1772689468545,0.45683422,2117.3,2117.1,1.518]
[1772689469046,0.45683422,2117.3,2116.8,0.0011]
[1772689469210,0.45683422,2117.3,2116.8,1.18211743]
[1772689469411,0.45683422,2117.3,2116.9,0.19630745]
[1772689470111,0.45683422,2117.3,2116.9,1.37722806]
[1772689471100,0.45683422,2117.3,2117.0,0.19630745]
[1772689471101,0.001,2117.3,2117.0,0.19630745]
[1772689471320,1.63637766,2117.7,2117.2,0.19530745]
[1772689471716,0.45583422,2117.7,2117.2,0.19530745]
[1772689472016,1.63636831,2117.7,2117.2,0.19530745]
[1772689472215,1.63636831,2117.7,2117.2,1.37609324]
[1772689473405,1.18053409,2117.7,2117.2,0.19530745]
[1772689473610,0.45583422,2117.6,2117.1,1.519]
[1772689473834,0.45583422,2117.6,2117.0,1.519]
[1772689474517,0.45583422,2117.4,2116.9,1.18092843]
[1772689474718,0.45583422,2117.4,2117.0,1.519]
[1772689476044,0.45583422,2117.4,2116.8,2.70107639]
[1772689476343,0.45583422,2117.4,2116.8,2.70112756]
[1772689476728,0.45583422,2117.2,2116.8,2.70112756]
[1772689477331,0.45583422,2117.2,2116.8,1.5201]
[1772689477653,0.45583422,2117.2,2116.8,2.70112321]
[1772689478045,0.45583422,2117.2,2116.8,1.5201]
[1772689478246,0.45583422,2117.2,2116.8,0.0011]
[1772689478423,0.45583422,2117.2,2116.8,1.5201]
[1772689478749,0.45583422,2117.1,2116.8,1.5201]
[1772689478957,0.45583422,2117.1,2116.8,0.0011]
[1772689480214,1.63663358,2117.3,2116.8,1.18212638]
[1772689480615,0.45583422,2117.3,2116.8,1.37743383]
[1772689481642,0.45583422,2117.3,2116.9,0.19530745]
[1772689482451,1.63751141,2117.5,2116.9,0.19530745]
[1772689483352,1.63751141,2117.5,2117.0,1.18091639]
[1772689483525,0.45583422,2117.4,2117.0,0.19530745]
[1772689484356,1.18167719,2117.5,2117.0,0.19530745]
[1772689484855,0.45583422,2117.4,2117.0,0.19530745]
[1772689485555,0.45583422,2117.4,2117.1,1.18086061]
[1772689485854,1.63653085,2117.4,2117.0,1.37617827]
[1772689486054,0.45583422,2117.4,2117.0,1.37617827]
[1772689486436,0.45583422,2117.4,2117.1,0.0011]
[1772689486636,1.18167936,2117.5,2117.1,0.0011]
[1772689486855,1.18167936,2117.5,2117.1,0.19640745]
[1772689487650,0.001,2117.5,2117.1,1.37723643]
[1772689487854,0.001,2117.5,2117.2,1.71530745]
[1772689488150,0.001,2117.5,2117.3,0.19530745]
[1772689488856,0.45683422,2117.8,2117.3,0.19530745]
[1772689488857,0.001,2117.8,2117.3,0.19530745]
[1772689489837,0.45301115,2117.8,2117.4,1.52]
[1772689490452,0.45301115,2117.8,2117.4,1.71530745]
[1772689490647,0.45201115,2118.1,2117.4,1.52]
[1772689491260,0.45201115,2118.1,2117.4,1.71430745]
[1772689492034,0.45201115,2117.9,2117.5,1.52]
[1772689493044,0.45201115,2117.9,2117.5,1.71430745]
[1772689493930,0.45201115,2118.1,2117.5,1.71430745]
[1772689494138,0.45201115,2118.1,2117.6,1.37488924]
[1772689494331,0.45201115,2118.0,2117.5,2.89490844]
[1772689494733,0.45201115,2118.0,2117.4,1.52]
[1772689495558,0.45201115,2118.0,2117.4,1.71430745]
[1772689496163,0.45201115,2117.8,2117.1,4.91869698]
[1772689496365,0.45201115,2117.8,2117.2,1.52]
[1772689498363,0.45201115,2117.8,2117.1,0.0011]
[1772689498364,0.45201115,2117.6,2117.1,0.0011]
[1772689498548,0.45201115,2117.6,2116.9,0.0011]
[1772689499344,0.45201115,2117.6,2117.3,0.0011]
[1772689500540,1.18063754,2117.5,2117.3,0.0011]
[1772689501350,0.45201115,2117.5,2117.3,0.0011]
[1772689502666,1.63270445,2117.4,2117.3,0.0011]
[1772689503657,0.45201115,2117.3,2117.0,0.0011]
[1772689504680,0.45201115,2117.1,2117.0,0.0011]
[1772689506159,0.45201115,2117.3,2117.0,0.0011]
[1772689506387,5.17468627,2117.5,2117.0,0.0011]
[1772689506587,0.45201115,2117.4,2117.0,0.0011]
[1772689508788,1.63276021,2117.3,2117.0,0.0011]
[1772689510789,1.6327745,2117.3,2117.0,0.0011]
[1772689510995,0.45201115,2117.6,2117.0,0.48740335]
[1772689511494,0.001,2117.3,2117.2,0.0011]
[1772689512975,0.001,2117.3,2117.2,0.48740335]
[1772689513594,0.001,2117.3,2117.2,0.0011]
[1772689514974,0.001,2117.3,2117.0,0.0011]
[1772689514975,0.45301115,2117.3,2117.0,0.0011]
[1772689517373,1.18080483,2117.2,2117.0,0.0011]
[1772689518894,1.676168,2117.2,2117.0,0.0011]
[1772689519701,0.001,2117.3,2117.0,0.0011]
[1772689520002,0.001,2117.3,2117.0,0.47835576]
[1772689520197,1.18176027,2117.3,2117.0,0.47835576]
[1772689520397,1.18176027,2117.3,2117.0,0.0011]
[1772689520601,0.001,2117.3,2117.0,0.47835576]
[1772689520906,1.18175225,2117.3,2117.0,0.47835576]
[1772689522402,0.001,2117.3,2117.0,1.65926113]
[1772689522806,0.001,2117.3,2117.1,0.47725576]
[1772689523805,0.001,2117.3,2117.1,1.65809361]
[1772689524203,0.001,2117.3,2117.2,0.47725576]
[1772689524578,0.001,2117.3,2117.2,0.47835576]
[1772689527182,1.67590199,2117.7,2117.3,0.46546154]
[1772689527583,0.47278395,2117.6,2117.2,0.0011]
[1772689527780,1.65342149,2117.5,2117.2,0.0011]
[1772689530325,0.47278395,2117.4,2117.0,0.0011]
[1772689532017,1.18063754,2117.5,2117.0,0.0011]
[1772689532018,0.47278395,2117.2,2117.0,0.0011]
[1772689532517,1.65364456,2117.1,2117.0,0.0011]
[1772689533716,0.47278395,2117.0,2116.9,0.0011]
[1772689535092,1.65370034,2117.0,2116.9,0.0011]
[1772689536101,0.47278395,2116.9,2116.5,1e-08]
[1772689537322,0.47278395,2116.7,2116.6,0.0011]
[1772689538722,1.18102796,2116.8,2116.6,0.0011]
[1772689538923,1.18091639,2117.0,2116.6,0.46656154]
[1772689540023,1.18091639,2117.0,2116.7,0.46546154]
[1772689540523,1.65370034,2117.0,2116.6,0.0011]
[1772689540733,0.47278395,2116.9,2116.6,0.0011]
[1772689541095,0.47278395,2116.9,2116.6,1.18222514]
[1772689541499,1.65368803,2117.1,2116.6,1.18222514]
[1772689543214,1.65368803,2117.1,2116.6,1.64768668]
[1772689543397,1.65368803,2117.1,2116.7,0.46546154]
[1772689543599,4.72431165,2117.2,2116.7,0.46546154]
[1772689543600,1.18183158,2117.2,2116.7,0.46546154]
[1772689544500,0.47378395,2117.2,2116.8,0.46546154]
[1772689546531,1.65464333,2117.2,2116.8,0.46546154]
[1772689548226,1.65464333,2117.2,2116.8,1.64648706]
[1772689548416,1.65464333,2117.2,2116.8,0.46546154]
[1772689549014,0.49323011,2117.1,2116.6,0.0011]
[1772689549326,0.49323011,2117.1,2116.8,0.0011]
[1772689551927,0.49323011,2116.9,2116.8,0.0011]
[1772689556541,1.67420228,2116.9,2116.8,0.0011]
[1772689558020,0.49323011,2116.8,2116.6,0.0011]
[1772689558645,1.18097217,2116.9,2116.6,0.0011]
[1772689558848,0.49323011,2116.8,2116.6,0.0011]
[1772689559227,1.67431129,2116.8,2116.6,0.0011]
[1772689559914,0.49323011,2116.7,2116.6,0.0011]
[1772689561345,1.67431387,2116.7,2116.6,0.0011]
[1772689562628,5.21721742,2116.9,2116.6,0.0011]
[1772689566225,5.21721742,2116.9,2116.6,0.45627804]
[1772689566619,5.21721742,2116.9,2116.6,0.0011]